lending/lending_fUSD_20240911
["ID","MTS","AMOUNT","RATE_DAILY","PERIOD"]
[337751398,1726045837644,-489.9914308,0.00012779,2]
[337751399,1726045837655,-10.0085692,0.00012779,2]
[337751400,1726045837664,-500.0,0.00012779,2]
[337751401,1726045837673,-500.0,0.00012779,2]
[337751402,1726045837682,-345.01959079,0.00012779,2]
[337751403,1726045837694,-154.98040921,0.00012779,2]
[337751404,1726045837703,-500.0,0.00012779,2]
[337751405,1726045837713,-158.24549625,0.00012779,2]
[337751406,1726045837722,-500.0,0.00012779,2]
[337751407,1726045837735,-500.0,0.00012779,2]
[337751408,1726045837745,-6263.49409214,0.0001278,2]
[337751409,1726045837755,-5231.0,0.0001278,2]
[337751410,1726045837766,-42012.79648187,0.0001278,2]
[337751411,1726045837777,-3704.1009641,0.0001278,2]
[337751412,1726045837789,-473.3383626,0.0001278,2]
[337751413,1726045837800,-504.3514221,0.0001278,2]
[337751414,1726045837815,-40600.24719147,0.0001278,2]
[337751415,1726045837824,-150.0,0.00012782,2]
[337751416,1726045837833,-161.85,0.00012789,2]
[337751417,1726045837842,-150.0,0.0001279,2]
[337751418,1726045837851,-150.0,0.00012797,2]
[337751419,1726045837861,-943.3389,0.00012799,2]
[337751420,1726045837870,-2113.7809,0.00012799,2]
[337751421,1726045837879,-537.21459214,0.00012799,2]
[337751422,1726045837890,-1720.75393469,0.00012799,2]
[337751423,1726045837901,-616.0766574,0.00012799,2]
[337751424,1726045837914,-600.5,0.00012799,2]
[337751425,1726045837927,-2973.57485311,0.00012799,2]
[337751426,1726045837942,-372.94911677,0.00012799,2]
[337751427,1726045837953,-3353.94450525,0.00012799,2]
[337751428,1726045837964,-667.24633407,0.00012799,2]
[337751430,1726045837984,-234157.74000657,0.00012799,2]
[337751431,1726045837993,-150.0,0.00012813,2]
[337751432,1726045838002,-150.0,0.00012813,2]
[337751433,1726045838011,-150.0,0.00012813,2]
[337751434,1726045838020,-150.0,0.00012818,2]
[337751435,1726045838029,-150.0,0.00012837,2]
[337751436,1726045838039,-150.0,0.00012839,2]
[337751437,1726045838048,-150.0,0.00012841,2]
[337751438,1726045838057,-150.0,0.0001285,2]
[337751439,1726045838066,-150.0,0.00012855,2]
[337751440,1726045838075,-150.0,0.00012864,2]
[337751441,1726045838085,-150.0,0.00012865,2]
[337751442,1726045838094,-150.0,0.00012876,2]
[337751443,1726045838103,-71362.16967089,0.0001288,2]
[337751444,1726045838115,-11783.10287721,0.0001288,2]
[337751445,1726045838124,-150.0,0.00012886,2]
[337751446,1726045838133,-14904.7035,0.00012899,2]
[337751447,1726045838142,-1000.0,0.000129,2]
[337751448,1726045838151,-1000.0,0.000129,2]
[337751449,1726045838160,-2500.0,0.000129,2]
[337751450,1726045838170,-900.98776,0.000129,2]
[337751451,1726045838180,-7500.0,0.000129,2]
[337751452,1726045838191,-150.0,0.00012902,2]
[337751453,1726045838200,-150.0,0.00012906,2]
[337751454,1726045838209,-150.0,0.00012919,2]
[337751455,1726045838219,-150.0,0.00012925,2]
[337751456,1726045838230,-3822.26480785,0.00012927,2]
[337751457,1726045838239,-287.64417964,0.0001294,2]
[337751458,1726045838248,-150.0,0.00012951,2]
[337751459,1726045838258,-150.0,0.00012952,2]
[337751460,1726045838267,-150.0,0.00012953,2]
[337751461,1726045838276,-150.0,0.00012956,2]
[337751462,1726045838285,-900.98777,0.0001297,2]
[337751463,1726045838294,-500.0,0.00012973,2]
[337751464,1726045838303,-500.0,0.00012973,2]
[337751465,1726045838312,-150.0,0.00012987,2]
[337751466,1726045838321,-161.85,0.0001299,2]
[337751467,1726045838330,-161.85,0.0001299,2]
[337751468,1726045838339,-161.85,0.0001299,2]
[337751469,1726045838349,-161.85,0.0001299,2]
[337751470,1726045838358,-161.85,0.0001299,2]
[337751471,1726045838368,-161.85,0.0001299,2]
[337751472,1726045838377,-161.85,0.0001299,2]
[337751473,1726045838387,-161.85,0.0001299,2]
[337751474,1726045838396,-29793.9534523,0.00013,2]
[337751475,1726045838415,-1001098.59658759,0.00013,2]
[337751476,1726045838430,-3547.97188898,0.00013,2]
[337751477,1726045838442,-20302.02648502,0.00013,2]
[337751478,1726045838454,-705.09885338,0.00013,2]
[337751479,1726045838465,-2146.17360397,0.00013,2]
[337751485,1726045839580,-276.875,0.00013,2]
[337751486,1726045839640,-271.37002482,0.00013,2]
[337751487,1726045839652,-473.28023069,0.00013,2]
[337751488,1726045839663,-1917.30000001,0.00013,2]
[337751489,1726045839699,-297.50798804,0.00013,2]
[337751490,1726045839711,-349.4,0.00013,2]
[337751491,1726045839760,-709.85025132,0.00013,2]
[337751492,1726045839821,-875.6832297,0.00013,2]
[337751493,1726045839833,-3406.05082035,0.00013,2]
[337751612,1726045842502,-1080096.53523473,0.00013,2]
[337751613,1726045842514,-1404.61876171,0.00013,2]
[337751614,1726045842525,-776.06146747,0.00013,2]
[337751615,1726045842560,-374.96381986,0.00013,2]
[337751616,1726045842572,-16496.33594203,0.00013,2]
[337751617,1726045842583,-4911.22029618,0.00013,2]
[337751618,1726045842617,-4568.00000004,0.00013,2]
[337751619,1726045842627,-776.7283455,0.00013,2]
[337751620,1726045843274,-916.74900749,0.00013,2]
[337751621,1726045843285,-1145.38121373,0.00013,2]
[337751622,1726045843296,-2082.32537501,0.00013,2]
[337751623,1726045843308,-410.33862467,0.00013,2]
[337751624,1726045843320,-556.20574333,0.00013,2]
[337751645,1726045845726,-1531.57713695,0.00013,2]
[337751646,1726045845738,-434.012,0.00013,2]
[337751647,1726045845749,-8843.92475302,0.00013,2]
[337751648,1726045845760,-2701.23101814,0.00013,2]
[337751649,1726045845771,-4694.20147376,0.00013,2]
[337751650,1726045845782,-499.58150131,0.00013,2]
[337751651,1726045845792,-487.94323696,0.00013,2]
[337751652,1726045845803,-1264.7968584,0.00013,2]
[337751653,1726045845814,-1110.1255479,0.00013,2]
[337751654,1726045845825,-3596.64044679,0.00013,2]
[337751655,1726045845836,-422.91126348,0.00013,2]
[337751656,1726045845848,-547.44,0.00013,2]
[337751657,1726045845859,-2372.81520537,0.00013,2]
[337751658,1726045845870,-1917.4034452,0.00013,2]
[337751659,1726045845881,-3168.79943377,0.00013,2]
[337751660,1726045845891,-283.49453764,0.00013,2]
[337751661,1726045845902,-850.03340466,0.00013,2]
[337751662,1726045845913,-7416.2350021,0.00013,2]
[337751663,1726045845924,-1904.96994,0.00013,2]
[337751664,1726045845934,-763.36361289,0.00013,2]
[337751665,1726045845945,-1453.49,0.00013,2]
[337751666,1726045845957,-12410.3791457,0.00013,2]
[337751667,1726045845968,-32947.27196235,0.00013,2]
[337751668,1726045845979,-57377.61474352,0.00013,2]
[337751669,1726045845990,-1217.64466643,0.00013,2]
[337751670,1726045846001,-9923.04667477,0.00013,2]
[337751671,1726045846012,-1134.13449414,0.00013,2]
[337751672,1726045846023,-324.61636726,0.00013,2]
[337751673,1726045846034,-678.72349785,0.00013,2]
[337751674,1726045846045,-5655.56132,0.00013,2]
[337751675,1726045846056,-8650.26506283,0.00013,2]
[337751676,1726045846067,-2763.97217333,0.00013,2]
[337751677,1726045846077,-299.07844765,0.00013,2]
[337751678,1726045846088,-8385.9918445,0.00013,2]
[337751679,1726045846098,-268.25,0.00013,2]
[337751680,1726045846110,-55489.51273293,0.00013,2]
[337751681,1726045846120,-290.05976315,0.00013,2]
[337751682,1726045846131,-3398.41651,0.00013,2]
[337751683,1726045846142,-1744.32203037,0.00013,2]
[337751684,1726045846153,-417.95823573,0.00013,2]
[337751685,1726045846168,-261.60174887,0.00013,2]
[337751686,1726045846179,-1128.75496496,0.00013,2]
[337751687,1726045846193,-1064.73000001,0.00013,2]
[337751688,1726045886722,403.63,0.00010959,2]
[337751689,1726045897278,168.18,0.00010959,2]
[337751690,1726045907797,840.9,0.00010959,2]
[337751692,1726046009692,1050.0,0.00011,2]
[337751693,1726046302183,396.36,0.00011908,2]
[337751695,1726046434639,250.0,0.00011875,2]
[337751696,1726046461369,250.0,0.00011852,2]
[337751697,1726046487296,880.72,9.972e-05,2]
[337751698,1726046497198,160.0,0.00011868,2]
[337751699,1726046525222,174.35,0.00011855,2]
[337751700,1726046533637,164.22,0.00011878,2]
[337751701,1726046541026,155.76,0.00011851,2]
[337751702,1726046541463,155.76,0.00011854,2]
[337751703,1726046541665,155.76,0.00011857,2]
[337751704,1726046541866,155.76,0.00011861,2]
[337751705,1726046542067,155.76,0.00011864,2]
[337751706,1726046542286,155.76,0.00011867,2]
[337751707,1726046542506,155.76,0.0001187,2]
[337751708,1726046542717,155.76,0.00011874,2]
[337751709,1726046542926,155.76,0.00011877,2]
[337751710,1726046543143,155.76,0.0001188,2]
[337751711,1726046543364,155.76,0.00011884,2]
[337751712,1726046543589,155.76,0.00011887,2]
[337751713,1726046543816,155.76,0.0001189,2]
[337751714,1726046544042,155.76,0.00011893,2]
[337751715,1726046544256,155.76,0.00011897,2]
[337751716,1726046544473,155.76,0.000119,2]
[337751717,1726046544692,155.76,0.00011903,2]
[337751718,1726046545089,155.76,0.00011907,2]
[337751719,1726046545290,155.76,0.0001191,2]
[337751720,1726046566590,150.0,0.00011883,2]
[337751721,1726046651755,250.0,0.0001184,2]
[337751722,1726046661068,9621.0,0.00012,3]
[337751723,1726046680214,200.0,0.00011873,2]
[337751724,1726046716723,256.9519799,0.00011688,2]
[337751725,1726046753999,697.52438471,0.00010988,2]
[337751726,1726046757326,604.7,6.94e-05,2]
[337751727,1726046769795,1475.26413018,0.0001,2]
[337751728,1726046841552,205.0,9.8e-05,2]
[337751729,1726046847687,11508.0,0.000119,5]
[337751733,1726046918210,1016.73934842,0.00010998,2]
[337751734,1726046963633,401.08220014,0.00026,60]
[337751735,1726046968118,250.0,0.00011892,2]
[337751736,1726046968915,500.0,0.00026,60]
[337751737,1726046969353,500.34600123,0.00026,60]
[337751738,1726046977427,500.0,0.00026,60]
[337751739,1726046977702,500.23955424,0.00026,60]
[337751740,1726046978819,1352.32,0.00026,60]
[337751741,1726046979121,1352.32,0.00026,60]
[337751742,1726046979586,1352.32,0.00026,60]
[337751743,1726046979667,1352.32,0.00026,60]
[337751744,1726046979928,1352.32,0.00026,60]
[337751745,1726046980221,1352.32,0.00026,60]
[337751746,1726046980483,1352.32,0.00026,60]
[337751747,1726046980752,1352.32,0.00026,60]
[337751748,1726046981006,1352.32,0.00026,60]
[337751749,1726046981275,1352.32,0.00026,60]
[337751750,1726046981587,1352.32,0.00026,60]
[337751751,1726046981899,1352.32,0.00026,60]
[337751752,1726046982169,1352.32,0.00026,60]
[337751753,1726046982441,1352.32,0.00026,60]
[337751754,1726046982758,1352.32,0.00026,60]
[337751755,1726046983056,1352.32,0.00026,60]
[337751756,1726046983320,1352.32,0.00026,60]
[337751757,1726046983579,1352.32,0.00026,60]
[337751758,1726046983840,1352.32,0.00026,60]
[337751759,1726046984205,1352.32,0.00026,60]
[337751760,1726046984461,1352.32,0.00026,60]
[337751761,1726046984711,1352.32,0.00026,60]
[337751762,1726046985344,1352.32,0.00026,60]
[337751763,1726046985595,1352.53394011,0.00026,60]
[337751764,1726047002667,949.8,0.00010067,2]
[337751765,1726047005266,500.0,0.00026,60]
[337751766,1726047005529,500.0,0.00026,60]
[337751767,1726047005807,500.0,0.00026,60]
[337751768,1726047006065,500.0,0.00026,60]
[337751769,1726047006340,225.94,0.00026,60]
[337751770,1726047006529,1205.32,0.00026,60]
[337751771,1726047006831,1205.32,0.00026,60]
[337751772,1726047007110,1205.32,0.00026,60]
[337751773,1726047007446,1205.32,0.00026,60]
[337751774,1726047007700,1205.32,0.00026,60]
[337751775,1726047007953,1205.32,0.00026,60]
[337751776,1726047008247,1205.32,0.00026,60]
[337751777,1726047008277,198.18,0.00011946,2]
[337751778,1726047008562,1205.32,0.00026,60]
[337751779,1726047008833,1205.32,0.00026,60]
[337751780,1726047009262,1205.32,0.00026,60]
[337751781,1726047009534,1205.32,0.00026,60]
[337751782,1726047009816,1205.32,0.00026,60]
[337751783,1726047010112,1205.32,0.00026,60]
[337751784,1726047010371,1205.32,0.00026,60]
[337751785,1726047010627,1205.32,0.00026,60]
[337751786,1726047011083,1205.32,0.00026,60]
[337751787,1726047011142,1205.32,0.00026,60]
[337751788,1726047011449,1205.32,0.00026,60]
[337751789,1726047011713,1205.32,0.00026,60]
[337751790,1726047012006,1205.32,0.00026,60]
[337751791,1726047012304,1205.32,0.00026,60]
[337751792,1726047012631,1205.32,0.00026,60]
[337751793,1726047012892,1205.32,0.00026,60]
[337751794,1726047013103,862.43,0.00026,60]
[337751795,1726047013200,1205.46554639,0.00026,60]
[337751796,1726047013368,862.43,0.00026,60]
[337751797,1726047013653,862.43,0.00026,60]
[337751798,1726047013935,862.43,0.00026,60]
[337751799,1726047014213,862.43,0.00026,60]
[337751800,1726047014465,862.43,0.00026,60]
[337751801,1726047014723,862.43,0.00026,60]
[337751802,1726047015217,862.43,0.00026,60]
[337751803,1726047015274,862.43,0.00026,60]
[337751804,1726047015556,862.43,0.00026,60]
[337751805,1726047015658,1231.09,0.00026,60]
[337751806,1726047015822,862.43,0.00026,60]
[337751807,1726047015942,1231.09,0.00026,60]
[337751808,1726047016075,862.43,0.00026,60]
[337751809,1726047016203,1231.09,0.00026,60]
[337751810,1726047016348,862.43,0.00026,60]
[337751811,1726047016484,1231.09,0.00026,60]
[337751812,1726047016638,862.43,0.00026,60]
[337751813,1726047016767,1231.09,0.00026,60]
[337751814,1726047016901,862.43,0.00026,60]
[337751815,1726047017019,1231.09,0.00026,60]
[337751816,1726047017230,862.43,0.00026,60]
[337751817,1726047017466,862.43,0.00026,60]
[337751818,1726047017506,1231.09,0.00026,60]
[337751819,1726047017745,862.43,0.00026,60]
[337751820,1726047017828,1231.09,0.00026,60]
[337751821,1726047017871,5647.82,0.00026,60]
[337751822,1726047018044,862.43,0.00026,60]
[337751823,1726047018099,500.0,0.00026,60]
[337751824,1726047018142,1231.09,0.00026,60]
[337751825,1726047018184,5647.82,0.00026,60]
[337751826,1726047018314,862.43,0.00026,60]
[337751827,1726047018383,500.0,0.00026,60]
[337751828,1726047018426,1231.09,0.00026,60]
[337751829,1726047018473,5647.82,0.00026,60]
[337751830,1726047018584,862.43,0.00026,60]
[337751831,1726047018670,1231.09,0.00026,60]
[337751832,1726047018729,5647.82,0.00026,60]
[337751833,1726047018882,862.43,0.00026,60]
[337751834,1726047018951,1231.09,0.00026,60]
[337751835,1726047019016,5647.82,0.00026,60]
[337751836,1726047019156,862.43,0.00026,60]
[337751837,1726047019224,1231.09,0.00026,60]
[337751838,1726047019272,5647.82,0.00026,60]
[337751839,1726047019316,500.0,0.00026,60]
[337751840,1726047019451,862.63744152,0.00026,60]
[337751841,1726047019495,1231.09,0.00026,60]
[337751842,1726047019538,5647.82,0.00026,60]
[337751843,1726047019582,500.0,0.00026,60]
[337751844,1726047019764,1231.09,0.00026,60]
[337751845,1726047019818,500.0,0.00026,60]
[337751846,1726047019858,5647.82,0.00026,60]
[337751847,1726047020017,1231.09,0.00026,60]
[337751848,1726047020085,557.06264997,0.00026,60]
[337751849,1726047020132,5647.82,0.00026,60]
[337751850,1726047020280,1231.09,0.00026,60]
[337751851,1726047020431,5647.82,0.00026,60]
[337751852,1726047020551,1231.09,0.00026,60]
[337751853,1726047020687,5647.82,0.00026,60]
[337751854,1726047020953,5647.82,0.00026,60]
[337751855,1726047021323,1231.09,0.00026,60]
[337751856,1726047021365,5647.82,0.00026,60]
[337751857,1726047021453,1231.09,0.00026,60]
[337751858,1726047021509,5647.82,0.00026,60]
[337751859,1726047021554,500.0,0.00026,60]
[337751860,1726047021701,1231.09,0.00026,60]
[337751861,1726047021780,5647.82,0.00026,60]
[337751862,1726047021821,500.0,0.00026,60]
[337751863,1726047021965,1231.09,0.00026,60]
[337751864,1726047022007,500.0,0.00026,60]
[337751865,1726047022056,500.0,0.00026,60]
[337751866,1726047022098,5647.82,0.00026,60]
[337751867,1726047022223,1231.09,0.00026,60]
[337751868,1726047022263,500.87693026,0.00026,60]
[337751869,1726047022478,500.0,0.00026,60]
[337751870,1726047022520,5647.82,0.00026,60]
[337751871,1726047022563,1231.28855647,0.00026,60]
[337751872,1726047022603,500.0,0.00026,60]
[337751873,1726047022645,5647.82,0.00026,60]
[337751874,1726047022804,500.0,0.00026,60]
[337751875,1726047022880,5647.82,0.00026,60]
[337751876,1726047023047,500.0,0.00026,60]
[337751877,1726047023125,5647.82,0.00026,60]
[337751878,1726047023313,500.0,0.00026,60]
[337751879,1726047023406,5647.82,0.00026,60]
[337751880,1726047023567,500.0,0.00026,60]
[337751881,1726047023669,5647.82,0.00026,60]
[337751882,1726047023821,500.0,0.00026,60]
[337751883,1726047023922,5647.82,0.00026,60]
[337751884,1726047024079,500.0,0.00026,60]
[337751885,1726047024269,5647.90846084,0.00026,60]
[337751886,1726047024374,500.0,0.00026,60]
[337751887,1726047024653,524.61128927,0.00026,60]
[337751888,1726047024841,500.0,0.00026,60]
[337751889,1726047025098,500.0,0.00026,60]
[337751890,1726047025140,958.25,0.00026,60]
[337751891,1726047025411,958.25,0.00026,60]
[337751892,1726047025663,958.25,0.00026,60]
[337751893,1726047025912,958.25,0.00026,60]
[337751894,1726047026179,958.25,0.00026,60]
[337751895,1726047026589,958.25,0.00026,60]
[337751896,1726047026859,958.25,0.00026,60]
[337751897,1726047027159,958.25,0.00026,60]
[337751898,1726047027449,958.25,0.00026,60]
[337751899,1726047027732,958.25,0.00026,60]
[337751900,1726047028207,958.25,0.00026,60]
[337751901,1726047028773,958.25,0.00026,60]
[337751902,1726047029022,958.25,0.00026,60]
[337751903,1726047029269,958.25,0.00026,60]
[337751904,1726047029520,958.25,0.00026,60]
[337751905,1726047029789,958.25,0.00026,60]
[337751906,1726047030058,958.25,0.00026,60]
[337751907,1726047030318,958.25,0.00026,60]
[337751908,1726047030630,958.25,0.00026,60]
[337751909,1726047030960,958.25,0.00026,60]
[337751910,1726047031201,500.0,0.00026,60]
[337751911,1726047031241,958.25,0.00026,60]
[337751913,1726047031514,500.95211497,0.00026,60]
[337751918,1726047031554,958.25,0.00026,60]
[337751926,1726047031687,-170.81,0.00012057,2]
[337751927,1726047031698,-186.55,0.0001226,2]
[337751928,1726047031709,-354.24,0.0001232,2]
[337751929,1726047031722,-485.76,0.0001232,2]
[337751930,1726047031733,-949.8,0.00012331,2]
[337751931,1726047031743,-300.0,0.00012579,2]
[337751932,1726047031752,-689.2802,0.0001258,2]
[337751933,1726047031762,-1474.6495,0.0001258,2]
[337751934,1726047031771,-1067.15844685,0.0001258,2]
[337751935,1726047031782,-818.82444517,0.0001258,2]
[337751936,1726047031793,-757.13168339,0.0001258,2]
[337751937,1726047031805,-11498.24532459,0.0001258,2]
[337751938,1726047031814,-2248.4717,0.0001258,2]
[337751939,1726047031823,-2817.92567207,0.0001258,2]
[337751940,1726047031835,-679.71,0.0001258,2]
[337751941,1726047031875,958.25,0.00026,60]
[337751942,1726047031886,-279.69657276,0.0001258,2]
[337751943,1726047031897,-662.54834617,0.0001258,2]
[337751944,1726047031908,-3116.33444117,0.0001258,2]
[337751945,1726047031919,-38.67616783,0.0001258,2]
[337751946,1726047031928,-1682.2527,0.0001258,2]
[337751947,1726047031937,-2500.0,0.0001258,2]
[337751948,1726047031947,-169.28695103,0.0001258,2]
[337751949,1726047031958,-661.62870515,0.0001258,2]
[337751950,1726047031973,-5532.1337717,0.0001258,2]
[337751951,1726047031984,-1000.0,0.00012598,2]
[337751952,1726047031994,-7041.0331,0.00012599,2]
[337751953,1726047032003,-357.62,0.000126,2]
[337751954,1726047032012,-499.99,0.000126,2]
[337751956,1726047032021,-150.99,0.000126,2]
[337751958,1726047032030,-500.0,0.00012673,2]
[337751960,1726047032039,-200.0,0.00012673,2]
[337751961,1726047032048,-429.52423647,0.00012673,2]
[337751963,1726047032057,-1999.09095854,0.0001268,2]
[337751965,1726047032069,-3649.63627015,0.0001268,2]
[337751971,1726047032109,958.29835373,0.00026,60]
[337752072,1726047037660,-404.64145571,0.0001268,2]
[337752073,1726047037671,-308.66866659,0.0001268,2]
[337752074,1726047037685,-4186.27582778,0.0001268,2]
[337752075,1726047037696,-298.5730194,0.0001268,2]
[337752076,1726047037721,-3545.23258283,0.0001268,2]
[337752077,1726047037734,-1925.65000005,0.0001268,2]
[337752078,1726047037790,-397.91003595,0.0001268,2]
[337752079,1726047037801,-7975.09654811,0.0001268,2]
[337752080,1726047037812,-4505.14618913,0.0001268,2]
[337752081,1726047037852,500.0,0.00026,60]
[337752082,1726047037868,-9784.07044576,0.0001268,2]
[337752083,1726047037877,-100000.0,0.0001268,2]
[337752084,1726047037886,-433.2501,0.0001268,2]
[337752085,1726047037895,-500.0,0.0001268,2]
[337752086,1726047037904,-25109.1521,0.00012698,2]
[337752087,1726047037914,-4010.1616,0.00012698,2]
[337752088,1726047037923,-10023.6101,0.00012699,2]
[337752089,1726047037940,-160.68711299,0.00012738,2]
[337752090,1726047037951,-1000.0,0.0001278,2]
[337752091,1726047037961,-159.87774001,0.00012798,2]
[337752092,1726047037970,-500.0,0.00012798,2]
[337752093,1726047037980,-500.0,0.00012798,2]
[337752094,1726047037991,-500.0,0.00012798,2]
[337752095,1726047038000,-500.0,0.00012798,2]
[337752096,1726047038009,-500.0,0.00012798,2]
[337752097,1726047038019,-500.0,0.00012798,2]
[337752098,1726047038028,-500.0,0.00012798,2]
[337752099,1726047038037,-423.1162786,0.00012798,2]
[337752100,1726047038047,-500.0,0.00012798,2]
[337752101,1726047038055,-244.70234588,0.00012798,2]
[337752102,1726047038065,-245000.0,0.00012799,2]
[337752103,1726047038074,-722.37877,0.0001287,2]
[337752104,1726047038084,-161.98,0.0001289,2]
[337752105,1726047038093,-7500.0,0.000129,2]
[337752106,1726047038102,-171.17415423,0.000129,2]
[337752108,1726047038111,-200.61158525,0.000129,2]
[337752109,1726047038120,-160.68711299,0.000129,2]
[337752111,1726047038130,-500.0,0.00012973,2]
[337752113,1726047038140,-500.0,0.00012973,2]
[337752116,1726047038152,-511.8498062,0.00012973,2]
[337752118,1726047038161,-280066.17,0.00012999,2]
[337752120,1726047038170,-663.04910483,0.00012999,2]
[337752122,1726047038179,-14896.97672615,0.00013,2]
[337752124,1726047038188,-4295148.60707598,0.00013,2]
[337752126,1726047038201,-1994.19640253,0.00013,2]
[337752128,1726047038213,-990.45993,0.00013,2]
[337752130,1726047038224,-2106.75256713,0.00013,2]
[337752132,1726047038237,-3500.51760241,0.00013,2]
[337752135,1726047038250,-865.69,0.00013,2]
[337752137,1726047038302,500.5812393,0.00026,60]
[337752138,1726047039742,-858.14295306,0.00013,2]
[337752139,1726047039756,-318.9,0.00013,2]
[337752140,1726047039969,-570.974,0.00013,2]
[337752141,1726047039982,-276.91,0.00013,2]
[337752142,1726047039997,-3925.90890146,0.00013,2]
[337752143,1726047040009,-7263.84919311,0.00013,2]
[337752144,1726047040020,-2422.93774298,0.00013,2]
[337752145,1726047040031,-285.12435591,0.00013,2]
[337752146,1726047040042,-325.57201946,0.00013,2]
[337752147,1726047040055,-14025.42300529,0.00013,2]
[337752148,1726047040066,-574.03358918,0.00013,2]
[337752149,1726047040078,-14379.00495764,0.00013,2]
[337752150,1726047040089,-4463.28178376,0.00013,2]
[337752151,1726047040103,-1143.93227337,0.00013,2]
[337752152,1726047040114,-1950.0,0.00013,2]
[337752153,1726047040125,-1922.42255462,0.00013,2]
[337752262,1726047041860,500.0,0.00026,60]
[337752263,1726047041936,500.46902196,0.00026,60]
[337752281,1726047042744,-515.811067,0.00012999,2]
[337752283,1726047042755,-147.23803783,0.00012999,2]
[337752285,1726047042765,-328.09442956,0.00013,2]
[337752286,1726047042777,-565.99524606,0.00013,2]
[337752287,1726047042788,-423.95581672,0.00013,2]
[337752288,1726047042801,-3145.92623713,0.00013,2]
[337752289,1726047042818,-9756.0,0.00013,2]
[337752290,1726047044001,-507.53028692,0.00013,2]
[337752291,1726047044012,-1160.60801783,0.00013,2]
[337752292,1726047044023,-500.0,0.00013,2]
[337752293,1726047044035,-356856.89712423,0.00013,2]
[337752294,1726047044046,-1257.99548884,0.00013,2]
[337752295,1726047044058,-319.88,0.00013,2]
[337752296,1726047044068,-3484.0,0.00013,2]
[337752297,1726047044079,-9351.87391616,0.00013,2]
[337752298,1726047044090,-250983.26524667,0.00013,2]
[337752299,1726047044102,-2301989.36156925,0.00013,2]
[337752300,1726047044115,-590.0,0.00013,2]
[337752301,1726047044126,-357.69482547,0.00013,2]
[337752302,1726047044137,-22488.59274326,0.00013,2]
[337752303,1726047044149,-15896.8466157,0.00013,2]
[337752304,1726047044160,-8673.86875784,0.00013,2]
[337752305,1726047044171,-13057.23584385,0.00013,2]
[337752306,1726047044182,-5714.85787125,0.00013,2]
[337752307,1726047044193,-1044.08377648,0.00013,2]
[337752308,1726047044206,-742.96054236,0.00013,2]
[337752319,1726047045915,-14674.0,0.00013,2]
[337752320,1726047045927,-55063.37164396,0.00013,2]
[337752321,1726047045982,-712.00037291,0.00013,2]